bitfinex-derivatives/quotes_ETHF0:USTF0_20250329
["timestamp","ask_amount","ask_price","bid_price","bid_amount"]
[1743266870572,0.00819986,1827.2,1827.1,1.09504]
[1743266870776,3.21599986,1827.2,1827.1,1.09504]
[1743266870969,4.7918628,1827.2,1826.7,7.0973631]
[1743266871169,4.7918628,1827.2,1826.9,1.09516]
[1743266871170,0.48084294,1827.0,1826.9,1.09516]
[1743266871366,0.48084294,1826.9,1826.8,7.2368423]
[1743266871571,5.07714294,1826.9,1826.8,3.80734188]
[1743266871772,1.09525,1826.8,1826.5,1.09537]
[1743266872071,3.2078,1826.6,1826.5,1.09537]
[1743266872473,3.68864294,1826.6,1826.4,1.09542]
[1743266872775,1.95814294,1826.5,1826.1,2.73899]
[1743266872978,3.2078,1826.6,1826.2,2.73895]
[1743266873278,3.2078,1826.6,1826.5,1.0954]
[1743266873479,3.2078,1826.6,1826.3,7.08957098]
[1743266873780,119.85998275,1826.9,1826.5,7.08957098]
[1743266874075,1.4773,1826.8,1826.7,1.09528]
[1743266874273,119.85998275,1826.9,1826.8,1.09522]
[1743266874871,119.85998275,1826.9,1826.8,8.07918084]
[1743266875071,118.26315275,1826.9,1826.8,8.07918084]
[1743266875271,60.68311488,1827.2,1827.1,1.09504]
[1743266875672,59.07855488,1827.2,1827.1,8.19512521]
[1743266875879,59.07855488,1827.2,1826.7,3.2078]
[1743266876079,53.36309488,1827.2,1827.1,1.09504]
[1743266876274,51.74695488,1827.2,1827.1,1.09504]
[1743266876475,50.64673488,1827.2,1827.1,1.09504]
[1743266876680,50.10203488,1827.2,1827.1,1.09504]
[1743266876975,243.79919819,1827.2,1827.1,1.09504]
[1743266877479,244.28004113,1827.2,1826.8,0.548]
[1743266877681,2.07914,1826.9,1826.8,1.09522]
[1743266877980,4.6551,1827.1,1827.0,1.0951]
[1743266878279,2.0403,1827.1,1827.0,1.0951]
[1743266878584,2.0403,1827.1,1827.0,8.19366543]
[1743266879175,2.0403,1827.1,1827.0,0.96698781]
[1743266879388,3.96734294,1827.1,1827.0,2.06208781]
[1743266879588,3.96734294,1827.1,1827.0,1.0951]
[1743266879981,3.4865,1827.1,1827.0,8.15186891]
[1743266880878,243.79919819,1827.2,1827.1,1.09504]
[1743266881079,73.83670305,1827.2,1827.1,1.09504]
[1743266881283,73.83670305,1827.2,1827.1,8.16941139]
[1743266881889,73.83670305,1827.2,1827.1,1.09504]
[1743266882087,73.83670305,1827.2,1827.1,8.05738647]
[1743266882899,273.93496628,1827.2,1827.1,8.05738647]
[1743266883104,273.93496628,1827.2,1826.5,41.97492626]
[1743266883298,273.93496628,1827.2,1827.1,1.09504]
[1743266883802,277.14276628,1827.2,1827.1,1.09504]
[1743266883989,307.98860908,1827.2,1826.8,1.09521]
[1743266884190,3.68864294,1826.9,1826.5,2.7384]
[1743266884396,3.68864294,1826.6,1826.4,1.09543]
[1743266884689,1.94484294,1826.5,1826.0,2.73925]
[1743266884896,3.68864294,1826.1,1826.0,1.0957]
[1743266885097,3.68864294,1826.1,1825.7,2.73971]
[1743266885310,1.4498,1826.0,1825.9,1.09576]
[1743266885601,1.4498,1826.0,1825.9,8.18157221]
[1743266885799,1.93064294,1826.0,1825.9,1.09576]
[1743266885994,31.26166425,1826.0,1825.4,0.548]
[1743266886200,3.68864294,1825.6,1825.0,2.74076]
[1743266886394,1.4498,1825.5,1825.3,0.548]
[1743266886598,1.93064294,1825.5,1825.4,8.14568215]
[1743266886800,1.88167853,1825.5,1825.3,1.09608]
[1743266887003,4.12052147,1825.4,1825.0,2.74069]
[1743266887205,1.93064294,1825.4,1825.3,1.09612]
[1743266887408,5.08920293,1825.4,1825.3,1.09612]
[1743266887903,20.69027169,1825.4,1825.3,8.29275812]
[1743266888102,19.35310169,1825.4,1825.3,8.29275812]
[1743266888401,3.04962426,1825.4,1825.3,10.79275812]
[1743266888705,3.04962426,1825.4,1825.3,14.16813479]
[1743266888706,0.02862426,1825.4,1825.3,14.16813479]
[1743266889008,4.26e-06,1825.4,1825.3,8.29275812]
[1743266889711,41.86697043,1825.4,1825.3,8.29275812]
[1743266890400,42.34781337,1825.4,1825.3,8.29275812]
[1743266890598,43.74711337,1825.4,1825.3,8.29275812]
[1743266890997,40.33998043,1825.4,1825.3,8.29275812]
[1743266891503,76.89813757,1825.4,1825.3,8.29275812]
[1743266892004,0.48084294,1825.2,1825.1,1.09624]
[1743266892206,3.2078,1825.2,1825.1,1.09624]
[1743266892505,32.5896428,1825.2,1824.7,2.74113]
[1743266892700,3.2078,1824.8,1824.7,1.09648]
[1743266892897,3.68864294,1824.8,1824.7,1.09648]
[1743266893201,21.50474294,1824.8,1824.7,8.21189766]
[1743266893508,21.50474294,1824.8,1824.3,3.28971]
[1743266893509,0.48084294,1824.4,1824.3,1.09672]
[1743266893710,16.3928,1824.7,1824.6,1.09654]
[1743266893908,19.6006,1824.7,1824.6,1.09654]
[1743266894103,20.08144294,1824.7,1824.6,1.09654]
[1743266894305,16.1968428,1824.7,1824.1,2.74211]
[1743266894503,3.2078,1824.3,1823.9,3.29108]
[1743266894710,103.53379202,1824.8,1824.5,7.26091266]
[1743266895009,99.81841202,1824.8,1824.7,1.09648]
[1743266895312,93.96265202,1824.8,1824.7,1.09648]
[1743266895504,91.41157202,1824.8,1824.7,8.37441803]
[1743266895705,89.55728202,1824.8,1824.7,1.09648]
[1743266895906,87.11919202,1824.8,1824.7,1.09648]
[1743266896102,84.80563202,1824.8,1824.7,1.64528]
[1743266896309,3.21599986,1825.1,1824.7,9.55577563]
[1743266896611,3.2078,1824.9,1824.7,0.5488]
[1743266896913,3.2078,1824.9,1824.8,1.09642]
[1743266898705,31.55590606,1825.0,1824.9,1.09636]
[1743266898902,33.51695606,1825.0,1824.9,1.09636]
[1743266899108,32.29395606,1825.0,1824.9,8.15807608]
[1743266899417,29.08615606,1825.0,1824.9,8.15807608]
[1743266899715,1.4532,1825.0,1824.9,8.15807608]
[1743266899906,4.661,1825.0,1824.9,8.15807608]
[1743266900903,1.16937,1825.0,1824.9,8.15807608]
[1743266901108,9.86e-06,1825.1,1825.0,1.0963]
[1743266901507,9.86e-06,1825.1,1825.0,8.06545255]
[1743266902317,3.20780986,1825.1,1825.0,8.06545255]
[1743266902518,9.86e-06,1825.1,1825.0,8.06545255]
[1743266904019,3.20780986,1825.1,1825.0,8.06545255]
[1743266904610,3.20780986,1825.1,1824.7,1.09646]
[1743266904611,16.3928,1825.0,1824.7,1.09646]
[1743266904815,3.2078,1824.8,1824.7,1.09648]
[1743266905212,4.6425,1825.0,1824.9,1.09636]
[1743266905613,4.6425,1825.0,1824.9,8.14306308]
[1743266905819,21.0353,1825.0,1824.9,8.14306308]
[1743266906110,4.6425,1825.0,1824.9,8.14306308]
[1743266906517,4.6425,1825.0,1824.1,9.23994]
[1743266906713,3.2078,1824.8,1824.5,1.0966]
[1743266906917,3.2078,1824.6,1824.5,1.0966]
[1743266907120,3.2078,1824.8,1824.7,1.09648]
[1743266907312,119.23151773,1825.0,1824.9,1.09636]
[1743266907518,119.15371773,1825.0,1824.9,1.09636]
[1743266907828,117.16650773,1825.0,1824.7,5.949]
[1743266908025,115.92356773,1825.0,1824.9,1.09636]
[1743266908316,114.74754773,1825.0,1824.9,1.09636]
[1743266908717,113.46796773,1825.0,1824.9,8.22603081]
[1743266909519,84.93269966,1825.0,1824.9,8.22603081]
[1743266909714,20.64198684,1825.4,1824.9,8.22603081]
[1743266909715,20.64198684,1825.4,1825.3,1.09612]
[1743266909918,16.51416684,1825.4,1825.3,1.09612]
[1743266910113,14.88782684,1825.4,1825.3,14.21144678]
[1743266910316,18.09562684,1825.4,1825.3,14.21144678]
[1743266910815,18.09562684,1825.4,1825.3,8.09512014]
[1743266913111,46.9966267,1825.4,1825.3,6.99900014]
[1743266913315,49.91024453,1825.4,1824.7,0.548]
[1743266913520,49.91024453,1825.4,1823.9,56.09768]
[1743266913521,3.2078,1824.8,1824.1,2.75203]
[1743266913726,3.2078,1824.3,1824.2,1.64558]
[1743266913920,3.2078,1824.3,1824.2,7.02034723]
[1743266914118,3.2078,1824.3,1824.2,8.11712723]
[1743266915014,19.6006,1824.3,1824.2,8.11712723]
[1743266915825,3.2078,1824.1,1823.0,0.5488]
[1743266916122,2.08913,1823.1,1823.0,1.0975]
[1743266916323,3.2078,1823.4,1822.9,3.29267]
[1743266916518,3.2078,1823.4,1823.3,1.09732]
[1743266916714,15.71599986,1823.4,1823.3,1.09732]
[1743266916914,19.6006,1823.4,1823.3,1.09732]
[1743266917124,0.00822323,1823.5,1823.4,1.09726]
[1743266917316,3.23e-06,1823.5,1823.4,1.09726]
[1743266917518,3.23e-06,1823.5,1823.4,8.23458495]
[1743266917720,19.60060323,1823.5,1823.4,8.23458495]
[1743266918025,3.23e-06,1823.5,1823.4,8.23458495]
[1743266918615,3.23e-06,1823.5,1823.4,11.44238495]
[1743266918818,3.23e-06,1823.5,1823.4,8.23458495]
[1743266919220,16.39280323,1823.5,1823.4,8.23458495]
[1743266919414,28.90100309,1823.5,1823.4,8.23458495]
[1743266919625,28.90100309,1823.5,1823.3,0.00822323]
[1743266919626,10.41193526,1823.4,1823.3,0.00822323]
[1743266919826,28.21293526,1823.4,1823.3,1.10554323]
[1743266920120,40.72113512,1823.4,1823.3,3.59037128]
[1743266920318,40.72113512,1823.4,1823.1,1.09744]
[1743266920523,3.2078,1823.2,1823.1,1.09744]
[1743266920723,19.6006,1823.2,1823.1,1.09744]
[1743266921420,10.41193526,1823.4,1823.3,1.09732]
[1743266921614,26.12793512,1823.4,1823.3,1.09732]
[1743266921828,13.61973526,1823.4,1823.3,1.09732]
[1743266922124,8.85951526,1823.4,1823.3,8.37066591]
[1743266922520,6.50623526,1823.4,1823.3,8.37066591]
[1743266922716,6.50623526,1823.4,1823.3,9.82796591]
[1743266923118,5.26e-06,1823.4,1823.3,9.82796591]
[1743266923422,5.26e-06,1823.4,1823.2,3.2078]
[1743266923616,5.26e-06,1823.4,1823.3,1.09732]
[1743266923820,3.23e-06,1823.5,1823.4,1.09726]
[1743266924517,46.80204454,1824.1,1824.0,1.0969]
[1743266924723,22.51224211,1824.1,1824.0,1.0969]
[1743266924925,22.45001411,1824.4,1824.0,9.85311254]
[1743266925123,18.42499849,1824.4,1824.3,4.30452]
[1743266925420,1.20057546,1824.4,1824.3,4.30452]
[1743266925622,0.00822323,1824.5,1824.3,18.603579]
[1743266925817,14.79907194,1825.0,1824.6,5.481]
[1743266926022,12.40620194,1825.0,1824.9,1.09636]
[1743266926225,15.61400194,1825.0,1824.9,1.09636]
[1743266926426,41.3072018,1825.0,1824.9,8.25235168]
[1743266926627,12.40620194,1825.0,1824.9,8.25235168]
[1743266926821,41.3072018,1825.0,1824.9,8.25235168]
[1743266927122,6.75997194,1825.0,1824.9,8.25235168]
[1743266927321,4.88082194,1825.0,1824.9,12.85145168]
[1743266927520,3.20269194,1825.0,1824.9,9.64365168]
[1743266928123,1.89906194,1825.0,1824.9,9.64365168]
[1743266928328,5.17e-06,1825.1,1825.0,1.0963]
[1743266928523,5.17e-06,1825.1,1825.0,12.001]
[1743266928728,5.17e-06,1825.1,1825.0,8.19354886]
[1743266930324,8.29276624,1825.5,1825.4,1.09606]
[1743266930521,2.85941624,1825.5,1825.4,4.30386]
[1743266930723,8.13e-06,1825.5,1825.4,11.5670782]
[1743266931123,8.13e-06,1825.6,1825.5,1.096]
[1743266931318,11.16835044,1826.1,1826.0,1.0957]
[1743266931824,7.41310044,1826.1,1826.0,18.39086215]
[1743266932027,4.96272044,1826.1,1826.0,18.39086215]
[1743266932224,2.12523233,1826.1,1826.0,12.09939252]
[1743266932926,0.71286233,1826.1,1826.0,12.09939252]
[1743266933321,11.90552682,1826.2,1826.1,1.09564]
[1743266933526,19.42005719,1826.6,1826.5,1.0954]
[1743266934031,19.42005719,1826.6,1826.5,8.34272459]
[1743266934227,35.81285719,1826.6,1826.5,8.34272459]
[1743266934424,19.42005719,1826.6,1826.5,8.34272459]
[1743266934626,16.72667719,1826.6,1826.5,8.34272459]
[1743266934821,15.52450719,1826.6,1826.5,8.34272459]
[1743266935124,5.86355908,1826.6,1826.5,8.34272459]
[1743266935329,1.13e-06,1826.7,1826.6,1.09534]
[1743266935528,1.13e-06,1826.7,1826.6,4.30314]
[1743266935724,1.13e-06,1826.7,1826.6,17.22019392]
[1743266935920,55.6554999,1827.0,1826.9,1.09516]
[1743266936127,4.16182156,1827.1,1827.0,1.0951]
[1743266936325,4.16182156,1827.1,1827.0,1.6431]
[1743266936626,3.61465888,1827.1,1827.0,8.62245331]
[1743266937628,3.61465888,1827.1,1827.0,6.97935331]
[1743266937629,35.72345874,1827.1,1827.0,6.97935331]
[1743266937833,46.97035874,1827.1,1827.0,6.97935331]
[1743266938842,46.97035874,1827.1,1826.5,0.548]
[1743266938843,1.09518,1826.9,1826.5,1.09537]
[1743266939038,16.3928,1827.0,1826.7,1.09528]
[1743266939331,3.2078,1826.8,1826.7,1.09528]
[1743266939721,19.6006,1826.8,1826.7,8.14747699]
[1743266940128,32.10879986,1826.8,1826.7,7.05219699]
[1743266940329,32.10879986,1826.8,1826.7,8.14747699]
[1743266940727,32.10879986,1826.8,1826.7,7.05219699]
[1743266941128,32.10879986,1826.8,1825.7,2.73963]
[1743266941129,16.3928,1826.7,1825.7,2.73963]
[1743266941329,3.2078,1826.0,1825.9,1.09576]
[1743266941524,3.2078,1826.0,1825.8,0.548]
[1743266941833,3.2078,1826.2,1826.1,1.09564]
[1743266942226,19.6006,1826.2,1826.1,8.08123294]
[1743266942629,3.2078,1826.2,1826.1,8.08123294]
[1743266943037,32.10879986,1826.2,1826.1,8.08123294]
[1743266943238,43.77059986,1826.2,1826.1,8.08123294]
[1743266944434,3.2078,1826.2,1826.1,8.08123294]
[1743266944640,3.21602323,1826.3,1826.2,1.09558]
[1743266945139,3.21602323,1826.3,1826.2,8.29675758]
[1743266945436,9.973,1827.1,1826.4,2.73866]
[1743266945636,3.2078,1826.9,1826.4,2.73866]
[1743266945837,11.7192,1826.8,1826.7,1.09528]
[1743266946035,16.3928,1826.9,1826.8,1.09522]
[1743266946236,16.3928,1826.9,1826.8,8.12582528]
[1743266946549,11.72742323,1827.0,1826.9,1.09516]
[1743266947036,40.62842309,1827.0,1826.9,7.10627461]
[1743266947234,41.72355309,1827.0,1826.6,1.0953]
[1743266947542,19.6006,1826.9,1826.7,1.09524]
[1743266947843,11.7192,1826.8,1826.7,8.17166751]
[1743266948039,28.112,1826.8,1826.7,8.17166751]
[1743266948243,0.00822323,1827.0,1826.9,1.09516]
[1743266948736,28.90922309,1827.0,1826.9,8.15592127]
[1743266948940,40.58802309,1827.0,1826.9,7.06076127]
[1743266949144,40.58802309,1827.0,1826.9,8.15592127]
[1743266949444,40.58802309,1827.0,1826.8,1.09518]
[1743266949645,16.3928,1826.9,1826.8,1.09518]
[1743266949845,28.0716,1826.9,1826.8,1.09518]
[1743266950044,40.57979986,1826.9,1826.8,8.05494042]
[1743266950339,43.78759986,1826.9,1826.8,6.95976042]
[1743266950740,43.78759986,1826.9,1826.8,8.05498042]
[1743266951037,43.78759986,1826.9,1826.4,3.28659]
[1743266951038,1.09545,1826.5,1826.0,0.00822323]
[1743266951233,14.8866,1826.4,1826.0,0.55622323]
[1743266951437,11.6788,1826.4,1826.3,1.09552]
[1743266951937,11.6788,1826.4,1826.3,8.15300387]
[1743266952937,3.2078,1826.8,1826.7,1.09528]
[1743266953242,16.3928,1826.7,1826.3,7.05748387]
[1743266953440,3.2078,1826.6,1826.5,1.09536]
[1743266953641,19.6006,1826.6,1826.5,1.09536]
[1743266953834,16.3928,1826.6,1826.5,8.18744112]
[1743266954346,27.80499986,1826.6,1826.5,8.18744112]
[1743266955338,31.01279986,1826.6,1826.5,7.09208112]
[1743266955537,31.01279986,1826.6,1826.5,8.18748112]
[1743266955737,31.01279986,1826.6,1826.5,1.0954]
[1743266955942,31.01279986,1826.6,1826.4,1.09542]
[1743266956139,14.61999986,1826.6,1826.5,7.12644112]
[1743266956342,16.3928,1826.5,1826.4,1.09542]
[1743266956745,27.80499986,1826.5,1826.4,8.13880838]
[1743266957744,13.91219986,1826.5,1826.0,0.00822323]
[1743266958046,3.2078,1826.1,1826.0,1.0957]
[1743266958240,19.6006,1826.4,1826.3,1.09552]
[1743266958435,14.61177663,1826.4,1826.3,1.09552]
[1743266958636,31.00457663,1826.4,1826.3,8.33155221]
[1743266959443,31.00457663,1826.4,1826.3,7.23603221]
[1743266961550,31.00457663,1826.4,1826.3,8.33155221]
[1743266961938,16.3928,1826.4,1826.3,8.33155221]
[1743266962339,0.00822323,1826.5,1826.4,1.09546]
[1743266962551,16.40102323,1826.5,1826.4,1.09546]
[1743266962847,28.90039986,1826.5,1826.4,7.08350802]
[1743266963050,1.09548,1826.4,1826.2,0.00822323]
[1743266963347,5.94665,1826.3,1825.5,1.096]
[1743266963553,3.2078,1825.7,1825.6,1.09594]
[1743266963851,1.09571,1826.0,1825.8,7.0226398]
[1743266964040,3.2078,1825.9,1825.5,7.0226398]
[1743266964241,3.2078,1825.6,1824.5,1.09658]
[1743266964444,3.2078,1824.8,1824.7,1.09648]
[1743266964750,3.2078,1825.2,1825.1,1.09624]
[1743266964950,3.2078,1825.6,1824.9,0.00822323]
[1743266965150,0.00822323,1825.3,1825.2,7.25822857]
[1743266965345,0.00822323,1825.3,1825.2,8.35440857]
[1743266965643,3.2078,1825.5,1825.4,1.09602]
[1743266965849,16.3928,1825.5,1825.4,1.09602]
[1743266966049,16.3928,1825.5,1825.4,8.3711983]
[1743266966050,19.6006,1825.5,1825.4,8.3711983]
[1743266966445,16.3928,1825.5,1825.4,8.3711983]
[1743266966649,19.6006,1825.5,1825.4,8.3711983]
[1743266966852,16.3928,1825.5,1825.4,8.3711983]
[1743266968651,0.00822323,1825.6,1825.5,1.096]
[1743266968853,0.00822323,1825.6,1825.5,1.644]
[1743266969056,0.00822323,1825.6,1825.5,20.38132159]
[1743266969250,3.2078,1826.0,1825.9,1.09576]
[1743266969648,19.6006,1826.0,1825.9,8.36613388]
[1743266969855,3.2078,1826.0,1825.9,8.36613388]
[1743266970149,29.4246336,1826.0,1825.9,8.36613388]
[1743266970350,29.4246336,1826.0,1825.9,7.27037388]
[1743266970854,31.9246336,1826.0,1825.8,0.00822323]
[1743266971049,28.67996,1825.9,1825.8,0.00822323]
[1743266971444,39.9082336,1825.9,1825.4,0.548]
[1743266971754,3.2078,1825.5,1825.2,1.09614]
[1743266971955,27.5842,1825.4,1825.3,1.09612]
[1743266972453,27.5842,1825.4,1825.3,7.2731085]
[1743266972454,36.8602336,1825.4,1825.3,7.2731085]
[1743266973154,36.8602336,1825.4,1825.2,0.00822323]
[1743266973357,19.6006,1825.3,1824.6,16.5888]
[1743266973553,3.2078,1825.0,1824.7,0.548]
[1743266973758,3.2078,1824.8,1824.7,7.0424016]
[1743266974260,29.9730736,1824.8,1824.3,1.64468]
[1743266974554,3.2078,1824.5,1824.4,0.00822323]
[1743266974747,3.2078,1824.5,1824.4,8.26172464]
[1743266974951,28.8766336,1824.5,1824.4,0.00822323]
[1743266975353,29.9732336,1824.5,1824.4,7.16506464]
[1743266975655,17.4895,1824.4,1823.9,1.09696]
[1743266975956,3.2078,1824.3,1824.1,1.09679]
[1743266976156,11.0685,1824.2,1824.1,1.09684]
[1743266976358,27.4613,1824.2,1823.6,10.9124]
[1743266976653,3.2078,1824.0,1823.9,1.0969]
[1743266976951,3.2078,1824.0,1823.8,1.097]
[1743266977149,27.4613,1823.9,1823.8,1.097]
[1743266977351,27.4613,1823.9,1823.8,8.16690014]
[1743266977560,24.0230736,1823.9,1823.8,8.16690014]
[1743266977753,16.3928,1823.9,1823.8,8.16690014]
[1743266978052,24.0230736,1823.9,1823.8,8.16690014]
[1743266978658,35.0915736,1823.9,1823.8,8.16690014]
[1743266979161,35.0915736,1823.9,1823.8,7.06990014]
[1743266979552,35.0915736,1823.9,1823.5,7.0281]
[1743266979553,35.0915736,1823.9,1823.5,1.0972]
[1743266979747,35.0915736,1823.9,1823.3,9.184]
[1743266979748,3.2078,1823.6,1823.3,9.184]
[1743266979954,3.2078,1823.6,1823.5,1.09717]
[1743266980258,14.7468,1823.5,1823.4,8.22778746]
[1743266980556,25.8393,1823.5,1823.4,1.09721]
[1743266980754,33.4695736,1823.5,1823.4,8.2713567]
[1743266981957,14.7468,1823.5,1823.4,8.2713567]
[1743266982158,0.00822323,1823.6,1823.5,1.0972]
[1743266982356,3.2078,1824.0,1823.6,2.74285]
[1743266982559,25.5848736,1824.0,1823.9,1.09696]
[1743266982856,3.2078,1824.2,1824.1,1.09684]
[1743266983257,19.93510876,1824.4,1824.3,1.09672]
[1743266983463,27.56538236,1824.4,1824.3,1.09672]
[1743266983665,42.31218236,1824.4,1824.3,8.32723514]
[1743266985263,22.99320876,1824.4,1824.3,8.32723514]
[1743266985465,8.24640876,1824.4,1824.3,8.87603514]
[1743266986059,0.00822323,1824.5,1824.4,1.09666]
[1743266986257,11.3023,1825.2,1824.4,12.0873]
[1743266986258,3.2078,1825.0,1824.4,12.0873]
[1743266986465,11.45420876,1825.4,1825.1,1.0962]
[1743266986663,14.7468,1825.3,1825.1,1.0962]
[1743266986870,3.2078,1825.2,1825.1,1.09624]
[1743266987062,17.9546,1825.2,1825.1,1.09624]
[1743266987260,25.5848736,1825.2,1825.1,8.13452497]
[1743266987865,22.3770736,1825.2,1825.1,8.13452497]
[1743266988170,14.7468,1825.2,1825.1,8.13452497]
[1743266988558,8.24640876,1825.4,1825.3,1.09612]
[1743266988863,15.87668236,1825.4,1825.3,1.09612]
[1743266989166,30.62348236,1825.4,1825.3,8.09831532]
[1743266989368,8.24640876,1825.4,1825.3,8.09831532]
[1743266989667,14.1653,1825.7,1825.6,1.09594]
[1743266989862,21.7955736,1825.7,1825.6,1.09594]
[1743266990068,36.5423736,1825.7,1825.6,1.09594]
[1743266990269,33.3345736,1825.7,1825.6,8.10072215]
[1743266990461,22.3770736,1825.7,1825.6,8.64872215]
[1743266990662,14.7468,1825.7,1825.6,8.64872215]
[1743266991263,22.3770736,1825.7,1825.6,8.64872215]
[1743266991469,25.5848736,1825.7,1825.6,8.64872215]
[1743266991882,25.5848736,1825.7,1825.6,7.00478215]
[1743266992178,25.5848736,1825.7,1825.3,1.0961]
[1743266992383,3.2078,1825.5,1825.4,1.09606]
[1743266992768,37.1958736,1825.5,1825.4,8.24305355]
[1743266993582,37.1958736,1825.5,1825.4,7.14699355]
[1743266993782,37.1958736,1825.5,1825.2,1.09615]
[1743266993982,3.2078,1825.3,1825.2,1.09615]
[1743266994280,3.2078,1825.3,1825.1,8.11527521]
[1743266994480,10.8380736,1825.3,1825.2,7.01907521]
[1743266994684,14.7468,1825.2,1825.0,1.10448323]
[1743266994979,3.2078,1825.1,1825.0,1.10452323]
[1743266995180,17.9546,1825.1,1825.0,1.10452323]
[1743266995381,25.5848736,1825.1,1825.0,8.18997386]
[1743266995584,25.5848736,1825.1,1825.0,7.09367386]
[1743266995785,25.5848736,1825.1,1825.0,8.18997386]
[1743266996081,22.3770736,1825.1,1825.0,8.18997386]
[1743266997082,3.2078,1825.3,1825.2,1.09618]
[1743266997284,25.5848736,1825.3,1825.2,1.09618]
[1743266997583,25.5848736,1825.3,1825.2,8.15035692]
[1743266997982,22.3770736,1825.3,1825.2,8.15035692]
[1743266998677,6.22315271,1825.6,1825.5,1.096]
[1743266999184,8.32232631,1825.6,1825.4,1.09603]
[1743266999388,5.3069736,1825.5,1825.0,0.55622323]
[1743266999580,3.2078,1825.2,1825.0,0.00822323]
[1743266999882,2.0991736,1825.1,1825.0,1.10452323]
[1743267000286,2.0991736,1825.1,1825.0,8.17667396]
[1743267000482,5.6954136,1825.1,1825.0,0.00822323]
[1743267000681,4.5991736,1825.1,1825.0,0.00822323]
[1743267000880,2.0991736,1825.1,1825.0,0.00822323]
[1743267001181,4.5991736,1825.1,1825.0,0.00822323]
[1743267001384,2.0991736,1825.1,1825.0,0.00822323]
[1743267001683,2.0991736,1825.1,1825.0,1.10452323]
[1743267001881,2.0991736,1825.1,1825.0,8.20247409]
[1743267003383,3.2078,1825.4,1825.1,1.09624]
[1743267003689,13.55873999,1825.4,1825.3,1.09612]
[1743267003987,2.0991736,1825.3,1825.2,7.19113927]
[1743267004184,2.0991736,1825.3,1825.1,7.19113927]
[1743267004487,5.3069736,1825.2,1825.0,8.28741927]
[1743267004688,3.2078,1825.2,1825.1,1.09624]
[1743267004982,3.2078,1825.2,1825.0,1.09628]
[1743267004983,2.0991736,1825.1,1825.0,1.09628]
[1743267005283,2.0991736,1825.1,1824.9,1.10456323]
[1743267005483,5.3069736,1825.0,1824.9,1.10456323]
[1743267005688,3.2078,1825.0,1824.9,1.10456323]
[1743267005881,5.3069736,1825.0,1824.9,1.10456323]
[1743267006484,5.3069736,1825.0,1824.9,0.00822323]
[1743267006792,3.2078,1825.3,1825.2,1.09616]
[1743267007086,2.0991736,1825.3,1825.2,1.09616]
[1743267007384,2.0991736,1825.3,1825.2,8.19087751]
[1743267007783,10.43265476,1825.3,1825.2,8.19087751]
[1743267008385,7.22483116,1825.3,1825.2,8.19087751]
[1743267008585,6.72663116,1825.3,1825.2,11.39867751]
[1743267009181,5.39795116,1825.3,1825.2,11.39867751]
[1743267009789,7.49712476,1825.3,1825.2,11.39867751]
[1743267009986,5.39795116,1825.3,1825.2,11.39867751]
[1743267010393,4.29064116,1825.3,1825.2,11.39867751]
[1743267010587,6.27202271,1825.6,1825.5,1.096]
[1743267010783,8.37119631,1825.6,1825.5,1.096]
[1743267010983,8.37119631,1825.6,1825.5,8.23086348]
[1743267012688,6.27202271,1825.6,1825.5,11.43866348]
[1743267012993,6.27202271,1825.6,1825.5,11.98666348]
[1743267013187,6.27202271,1825.6,1825.5,23.98396348]
[1743267013388,8.37119631,1825.6,1825.5,23.98396348]
[1743267013587,8.37119631,1825.6,1825.5,23.43596348]
[1743267013789,8.37119631,1825.6,1825.5,20.22816348]
[1743267014093,2.0991736,1825.6,1825.5,20.22816348]
[1743267014689,2.0991736,1825.6,1825.5,23.43596348]
[1743267014995,2.0991736,1825.6,1825.5,20.77616348]
[1743267015395,2.0991736,1825.6,1825.5,8.23086348]
[1743267015695,13.0617736,1825.6,1825.5,8.23086348]
[1743267015892,18.7695736,1825.6,1825.1,3.2078]
[1743267016092,2.0991736,1825.5,1825.2,1.09614]
[1743267016390,2.0991736,1825.3,1825.2,7.02239936]
[1743267016584,14.89873325,1825.4,1825.2,7.02239936]
[1743267016785,2.0991736,1825.3,1824.9,0.00822323]
[1743267016994,3.2078,1825.2,1825.0,1.09628]
[1743267017191,3.2078,1825.2,1824.9,0.00822323]
[1743267017389,2.0991736,1825.1,1825.0,1.09629]
[1743267017592,6.27202271,1825.4,1825.0,7.21116051]
[1743267017793,3.2078,1825.2,1825.0,7.21116051]
[1743267017998,3.2078,1825.2,1824.9,1.10456323]
[1743267018294,2.0991736,1825.1,1824.9,0.00822323]
[1743267018499,3.76021017,1825.4,1825.3,1.09612]
[1743267018692,7.72333913,1825.5,1825.4,1.09606]
[1743267018995,5.12606913,1825.5,1825.4,12.53686]
[1743267019194,1.99883914,1825.5,1825.4,22.22359288]
[1743267019396,9.79695913,1825.6,1825.5,1.096]
[1743267019610,9.79695913,1825.6,1825.5,15.7446]
[1743267019897,9.79695913,1825.6,1825.5,30.37063518]
[1743267021094,10.9819,1825.7,1825.6,1.09594]
[1743267021601,10.9819,1825.7,1825.6,8.34599535]
[1743267022002,10.9819,1825.7,1825.6,7.25005535]
[1743267022301,10.9819,1825.7,1825.3,1.09609]
[1743267022302,16.6897,1825.7,1825.3,1.09609]
[1743267022498,14.1897,1825.7,1825.3,1.09611]
[1743267022698,14.1897,1825.7,1825.3,1.09609]
[1743267023207,3.2078,1825.5,1824.9,0.00822323]
[1743267023501,3.2078,1825.2,1825.0,1.09629]
[1743267023712,11.085,1825.1,1825.0,7.20531771]
[1743267023998,11.085,1825.1,1825.0,8.30161771]
[1743267024805,3.21602323,1825.8,1825.0,7.20531771]
[1743267025103,11.5099,1825.5,1825.4,1.09602]
[1743267025302,3.21602323,1825.8,1825.2,11.4126]
[1743267025506,0.00822323,1825.8,1825.7,1.09588]
[1743267025702,0.00822323,1825.8,1825.5,10.38007798]
[1743267025703,0.00822323,1825.8,1825.6,1.09593]
[1743267025904,0.00822323,1825.8,1825.7,1.09588]
[1743267026100,0.00822323,1825.8,1825.7,8.06198693]
[1743267026307,0.00822323,1825.8,1825.7,1.09588]
[1743267026608,0.00822323,1825.8,1825.7,8.0593815]
[1743267026807,0.00822323,1825.8,1825.7,19.4719815]
[1743267027305,0.00822323,1825.8,1825.7,6.9635015]
[1743267027507,0.00822323,1825.8,1825.7,8.0593815]
[1743267027703,11.51812323,1825.8,1825.7,1.09588]
[1743267028106,11.51812323,1825.8,1825.7,8.1205879]
[1743267029507,11.51812323,1825.8,1825.7,7.0247079]
[1743267029900,11.51812323,1825.8,1825.7,1.09588]